[Event "*** Titled Tuesday 3|2 Blitz"]
[Site "Chess.com"]
[Date "2015.06.02"]
[Round "2"]
[White "MFBerna"]
[Black "Vandros57"]
[Result "1-0"]
[WhiteElo "1946"]
[BlackElo "1842"]
[TimeControl "180+2"]
[EndTime "11:23:25 PDT"]
[Termination "MFBerna won on time"]

1. e4 {[%clk 0:02:55.8]} 1... c5 {[%clk 0:02:59.4]} 2. Nf3 {[%clk 0:02:56.2]}
2... d6 {[%clk 0:02:59.6]} 3. d4 {[%clk 0:02:56.9]} 3... cxd4 {[%clk 0:03:00]}
4. Nxd4 {[%clk 0:02:57.6]} 4... Nf6 {[%clk 0:02:59.7]} 5. Nc3 {[%clk 0:02:56.2]}
5... e5 {[%clk 0:02:59.3]} 6. Nb3 {[%clk 0:02:56.4]} 6... Be7 {[%clk 0:02:56.9]}
7. Be2 {[%clk 0:02:56.9]} 7... O-O {[%clk 0:02:56.6]} 8. O-O {[%clk 0:02:58.1]}
8... b6 {[%clk 0:02:48.8]} 9. Bf3 {[%clk 0:02:44.2]} 9... Bb7 {[%clk 0:02:48.2]}
10. Qe2 {[%clk 0:02:37.5]} 10... Nbd7 {[%clk 0:02:44.8]} 11. Rd1 {[%clk
0:02:37.9]} 11... a6 {[%clk 0:02:42.9]} 12. a4 {[%clk 0:02:36.4]} 12... Qc7
{[%clk 0:02:41.5]} 13. Nd2 {[%clk 0:02:23.2]} 13... Nc5 {[%clk 0:02:38.8]} 14.
Nf1 {[%clk 0:02:19.1]} 14... Rfd8 {[%clk 0:02:35.6]} 15. Bg5 {[%clk 0:02:18.9]}
15... h6 {[%clk 0:02:34.4]} 16. Bxf6 {[%clk 0:02:18.2]} 16... Bxf6 {[%clk
0:02:34.4]} 17. Nd5 {[%clk 0:02:17]} 17... Bxd5 {[%clk 0:02:32.7]} 18. Rxd5
{[%clk 0:02:18.9]} 18... Bg5 {[%clk 0:02:26.6]} 19. g3 {[%clk 0:02:01.4]} 19...
a5 {[%clk 0:02:23.3]} 20. Ne3 {[%clk 0:01:54.7]} 20... Bxe3 {[%clk 0:02:22.2]}
21. Qxe3 {[%clk 0:01:55.5]} 21... Rac8 {[%clk 0:02:04.6]} 22. Bg4 {[%clk
0:01:49.7]} 22... Ne6 {[%clk 0:01:58.7]} 23. c3 {[%clk 0:01:47.4]} 23... Qb8
{[%clk 0:01:46.5]} 24. Rad1 {[%clk 0:01:45.4]} 24... Rc5 {[%clk 0:01:41.8]} 25.
Qd2 {[%clk 0:01:30.5]} 25... Rxd5 {[%clk 0:01:37.1]} 26. Qxd5 {[%clk 0:01:32.4]}
26... Nc5 {[%clk 0:01:32.5]} 27. Qc6 {[%clk 0:01:24.7]} 27... Qb7 {[%clk
0:01:23.8]} 28. Qxb7 {[%clk 0:01:22.6]} 28... Nxb7 {[%clk 0:01:23.6]} 29. b4
{[%clk 0:00:56.6]} 29... Ra8 {[%clk 0:01:12.8]} 30. Bd7 {[%clk 0:00:50.8]} 30...
Kf8 {[%clk 0:00:53.5]} 31. Bc6 {[%clk 0:00:50.6]} 31... Rb8 {[%clk 0:00:51.5]}
32. Bxb7 {[%clk 0:00:51.2]} 32... Rxb7 {[%clk 0:00:51.6]} 33. Rxd6 {[%clk
0:00:51.6]} 33... Ke7 {[%clk 0:00:47]} 34. Rd5 {[%clk 0:00:52.6]} 34... f6
{[%clk 0:00:40.3]} 35. bxa5 {[%clk 0:00:51.4]} 35... bxa5 {[%clk 0:00:40.5]} 36.
Rxa5 {[%clk 0:00:53.3]} 36... Rb1+ {[%clk 0:00:36.9]} 37. Kg2 {[%clk 0:00:52.8]}
37... g5 {[%clk 0:00:35.8]} 38. Ra7+ {[%clk 0:00:50.6]} 38... Kd6 {[%clk
0:00:32.4]} 39. Rh7 {[%clk 0:00:49.5]} 39... Ra1 {[%clk 0:00:27.3]} 40. Rxh6
{[%clk 0:00:50.1]} 40... Ke6 {[%clk 0:00:27.1]} 41. Rh8 {[%clk 0:00:48.6]} 41...
Rxa4 {[%clk 0:00:27.2]} 42. Re8+ {[%clk 0:00:42.7]} 42... Kf7 {[%clk 0:00:25.4]}
43. Rc8 {[%clk 0:00:39.3]} 43... Rxe4 {[%clk 0:00:25.2]} 44. c4 {[%clk
0:00:40.3]} 44... g4 {[%clk 0:00:20.6]} 45. c5 {[%clk 0:00:40.3]} 45... Rc4
{[%clk 0:00:20.1]} 46. h4 {[%clk 0:00:38.8]} 46... gxh3+ {[%clk 0:00:18.9]} 47.
Kxh3 {[%clk 0:00:40.7]} 47... f5 {[%clk 0:00:18.4]} 48. c6 {[%clk 0:00:38.5]}
48... e4 {[%clk 0:00:17.5]} 49. c7 {[%clk 0:00:31.3]} 49... Ke7 {[%clk
0:00:10.8]} 50. Kg2 {[%clk 0:00:13.6]} 50... Kd7 {[%clk 0:00:08.4]} 51. Rf8
{[%clk 0:00:14.5]} 51... Rxc7 {[%clk 0:00:04.3]} 52. Rxf5 {[%clk 0:00:15.3]}
52... Ke6 {[%clk 0:00:03.3]} 53. g4 {[%clk 0:00:12.9]} 53... Rc2 {[%clk
0:00:03.1]} 54. Kg3 {[%clk 0:00:13.9]} 54... Rc3+ {[%clk 0:00:03.1]} 55. Kf4
{[%clk 0:00:13.1]} 1-0

[Event "*** Titled Tuesday 3|2 Blitz"]
[Site "Chess.com"]
[Date "2015.06.02"]
[Round "2"]
[White "Cruel_Yaro"]
[Black "petrpalachev"]
[Result "1-0"]
[WhiteElo "2541"]
[BlackElo "2379"]
[TimeControl "180+2"]
[EndTime "11:23:34 PDT"]
[Termination "Cruel_Yaro won on time"]

1. e4 {[%clk 0:03:00.1]} 1... c6 {[%clk 0:03:00.2]} 2. d4 {[%clk 0:03:00.3]}
2... d5 {[%clk 0:03:02.1]} 3. e5 {[%clk 0:03:00]} 3... Bf5 {[%clk 0:03:02.8]} 4.
h4 {[%clk 0:03:00.5]} 4... Qb6 {[%clk 0:03:02.6]} 5. a4 {[%clk 0:03:00.3]} 5...
a6 {[%clk 0:02:58.8]} 6. a5 {[%clk 0:02:59.5]} 6... Qc7 {[%clk 0:02:59.2]} 7. c4
{[%clk 0:02:59.8]} 7... Bxb1 {[%clk 0:02:47.3]} 8. Rxb1 {[%clk 0:03:00.3]} 8...
Qxa5+ {[%clk 0:02:48.9]} 9. Bd2 {[%clk 0:02:39.9]} 9... Qc7 {[%clk 0:02:40.6]}
10. e6 {[%clk 0:02:29.9]} 10... fxe6 {[%clk 0:02:40.2]} 11. Qh5+ {[%clk
0:02:28.7]} 11... g6 {[%clk 0:02:39.2]} 12. Qe2 {[%clk 0:02:29.5]} 12... e5
{[%clk 0:01:46.4]} 13. dxe5 {[%clk 0:02:23.6]} 13... e6 {[%clk 0:01:44.1]} 14.
h5 {[%clk 0:02:18.9]} 14... Bg7 {[%clk 0:01:36]} 15. Nf3 {[%clk 0:02:08.8]}
15... Nd7 {[%clk 0:01:36.1]} 16. Ng5 {[%clk 0:02:00.6]} 16... Qxe5 {[%clk
0:01:35.9]} 17. Nxe6 {[%clk 0:01:54.9]} 17... Qxe2+ {[%clk 0:01:26]} 18. Bxe2
{[%clk 0:01:54.9]} 18... Kf7 {[%clk 0:01:16.8]} 19. cxd5 {[%clk 0:01:52.4]}
19... cxd5 {[%clk 0:01:07.7]} 20. Ng5+ {[%clk 0:00:57]} 20... Ke8 {[%clk
0:01:08.5]} 21. Rc1 {[%clk 0:00:41.9]} 21... Bxb2 {[%clk 0:01:01.8]} 22. Rc7
{[%clk 0:00:42.3]} 22... Ne7 {[%clk 0:00:50.4]} 23. Rxb7 {[%clk 0:00:40.5]}
23... Be5 {[%clk 0:00:48.4]} 24. Bb4 {[%clk 0:00:28.2]} 24... Nc6 {[%clk
0:00:37.2]} 25. Ba3 {[%clk 0:00:22.5]} 25... Rb8 {[%clk 0:00:37.5]} 26. Bxa6
{[%clk 0:00:22.3]} 26... Rxb7 {[%clk 0:00:36.4]} 27. Bxb7 {[%clk 0:00:23.1]}
27... Nd4 {[%clk 0:00:34.4]} 28. Kf1 {[%clk 0:00:18.4]} 28... Bf6 {[%clk
0:00:24.2]} 29. Bb2 {[%clk 0:00:14.7]} 29... Bxg5 {[%clk 0:00:23.3]} 30. Bxd4
{[%clk 0:00:15]} 30... Rf8 {[%clk 0:00:05.5]} 31. hxg6 {[%clk 0:00:11.6]} 31...
hxg6 {[%clk 0:00:06.3]} 32. Bxd5 {[%clk 0:00:13.1]} 32... Bf6 {[%clk 0:00:04.3]}
33. Be3 {[%clk 0:00:13.1]} 33... Ke7 {[%clk 0:00:02.2]} 34. Be4 {[%clk
0:00:13.9]} 34... Ne5 {[%clk 0:00:02.8]} 35. Rh7+ {[%clk 0:00:14.2]} 35... Ke6
{[%clk 0:00:03.7]} 36. Ra7 {[%clk 0:00:15.1]} 36... Rd8 {[%clk 0:00:04.1]} 37.
f3 {[%clk 0:00:15.6]} 37... Rd6 {[%clk 0:00:03.6]} 38. Rc7 {[%clk 0:00:11.5]}
38... Rd7 {[%clk 0:00:03.8]} 39. Rc8 {[%clk 0:00:11.5]} 39... Rd8 {[%clk
0:00:04.6]} 40. Rc2 {[%clk 0:00:11.2]} 40... Rd1+ {[%clk 0:00:05.2]} 41. Ke2
{[%clk 0:00:11.7]} 41... Rd8 {[%clk 0:00:07.1]} 42. Ra2 {[%clk 0:00:12.1]} 42...
Kf7 {[%clk 0:00:06.7]} 43. Ra7+ {[%clk 0:00:11.8]} 43... Rd7 {[%clk 0:00:07.7]}
44. Ra6 {[%clk 0:00:12.5]} 44... Nc4 {[%clk 0:00:08.2]} 45. Bf4 {[%clk
0:00:13.3]} 45... g5 {[%clk 0:00:07.8]} 46. Bc1 {[%clk 0:00:13.9]} 46... Rd6
{[%clk 0:00:04.9]} 47. Ra7+ {[%clk 0:00:12.9]} 47... Ke6 {[%clk 0:00:06]} 48.
Ra4 {[%clk 0:00:13.3]} 48... Ne5 {[%clk 0:00:04.7]} 49. Bb1 {[%clk 0:00:13.1]}
49... Rc6 {[%clk 0:00:03]} 50. Bd2 {[%clk 0:00:13.1]} 50... Rb6 {[%clk
0:00:03.4]} 51. Ba2+ {[%clk 0:00:13.7]} 51... Ke7 {[%clk 0:00:04.7]} 52. Bb4+
{[%clk 0:00:14.2]} 52... Kd7 {[%clk 0:00:05.9]} 53. Bd5 {[%clk 0:00:12.8]} 53...
Nc6 {[%clk 0:00:06.2]} 54. Bd2 {[%clk 0:00:10.9]} 54... Nd4+ {[%clk 0:00:04.5]}
55. Kd3 {[%clk 0:00:11.7]} 55... Nf5 {[%clk 0:00:05]} 56. Ke4 {[%clk 0:00:08.1]}
56... Ne7 {[%clk 0:00:06.1]} 57. Bc4 {[%clk 0:00:08.7]} 57... Rd6 {[%clk
0:00:02.3]} 58. Be3 {[%clk 0:00:09.3]} 1-0

[Event "*** Titled Tuesday 3|2 Blitz"]
[Site "Chess.com"]
[Date "2015.06.02"]
[Round "3"]
[White "ruifeng"]
[Black "WanderingPuppet"]
[Result "1-0"]
[WhiteElo "2066"]
[BlackElo "2129"]
[TimeControl "180+2"]
[EndTime "11:28:31 PDT"]
[Termination "ruifeng won by resignation"]

1. e4 {[%clk 0:03:01.9]} 1... c5 {[%clk 0:02:55.3]} 2. Nc3 {[%clk 0:03:01.6]}
2... e6 {[%clk 0:02:56.4]} 3. g3 {[%clk 0:03:02.4]} 3... Nc6 {[%clk 0:02:57.2]}
4. Bg2 {[%clk 0:03:03.2]} 4... g6 {[%clk 0:02:58.8]} 5. d3 {[%clk 0:03:04]} 5...
Bg7 {[%clk 0:03:00.5]} 6. Be3 {[%clk 0:03:05.1]} 6... Qa5 {[%clk 0:02:59.4]} 7.
Qd2 {[%clk 0:03:04.1]} 7... Nge7 {[%clk 0:02:59.1]} 8. Nge2 {[%clk 0:03:03.7]}
8... O-O {[%clk 0:02:59.6]} 9. O-O {[%clk 0:03:01.8]} 9... d6 {[%clk 0:02:55.2]}
10. Bh6 {[%clk 0:03:01.9]} 10... b5 {[%clk 0:02:55.5]} 11. Bxg7 {[%clk
0:03:02.1]} 11... Kxg7 {[%clk 0:02:56.4]} 12. f4 {[%clk 0:03:02.9]} 12... b4
{[%clk 0:02:57.5]} 13. Nd1 {[%clk 0:03:03.6]} 13... Rb8 {[%clk 0:02:54.9]} 14.
Ne3 {[%clk 0:03:04.6]} 14... f5 {[%clk 0:02:51.2]} 15. exf5 {[%clk 0:03:02]}
15... gxf5 {[%clk 0:02:51.3]} 16. g4 {[%clk 0:02:41]} 16... Bb7 {[%clk
0:02:40.2]} 17. Ng3 {[%clk 0:02:40]} 17... Nd4 {[%clk 0:02:30.3]} 18. Bxb7
{[%clk 0:02:40.8]} 18... Rxb7 {[%clk 0:02:29.3]} 19. gxf5 {[%clk 0:02:40.8]}
19... Nexf5 {[%clk 0:02:22.8]} 20. Ngxf5+ {[%clk 0:02:38.3]} 20... Nxf5 {[%clk
0:02:08]} 21. Nxf5+ {[%clk 0:02:39.1]} 21... Rxf5 {[%clk 0:02:07.8]} 22. Qg2+
{[%clk 0:02:39.8]} 22... Kh6 {[%clk 0:01:59]} 23. Qxb7 {[%clk 0:02:40.6]} 23...
Qd8 {[%clk 0:02:00.2]} 24. Kh1 {[%clk 0:02:35.6]} 24... Qh4 {[%clk 0:02:02.1]}
25. Rg1 {[%clk 0:02:34.3]} 1-0

[Event "*** Titled Tuesday 3|2 Blitz"]
[Site "Chess.com"]
[Date "2015.06.02"]
[Round "3"]
[White "Fh2411"]
[Black "amandarm"]
[Result "0-1"]
[WhiteElo "2067"]
[BlackElo "2109"]
[TimeControl "180+2"]
[EndTime "11:29:00 PDT"]
[Termination "amandarm won - game abandoned"]

1. d4 {[%clk 0:03:01.1]} 1... Nf6 {[%clk 0:02:59.1]} 2. Nf3 {[%clk 0:02:59.4]}
2... c5 {[%clk 0:02:59.7]} 3. c3 {[%clk 0:02:57.3]} 3... e6 {[%clk 0:02:59.9]}
4. Bg5 {[%clk 0:02:55.9]} 4... Be7 {[%clk 0:02:59.3]} 5. e3 {[%clk 0:02:56.8]}
5... O-O {[%clk 0:02:58.2]} 6. Nbd2 {[%clk 0:02:56.3]} 6... Nc6 {[%clk
0:02:57.9]} 7. Bd3 {[%clk 0:02:57.1]} 7... h6 {[%clk 0:02:58.3]} 8. Bh4 {[%clk
0:02:57.3]} 8... Nh5 {[%clk 0:02:55.3]} 9. Bxe7 {[%clk 0:02:51.9]} 9... Qxe7
{[%clk 0:02:56.3]} 10. O-O {[%clk 0:02:45.2]} 10... b6 {[%clk 0:02:49.6]} 11.
Ne5 {[%clk 0:02:30.4]} 11... Nf6 {[%clk 0:02:30.1]} 12. f4 {[%clk 0:02:13.2]}
12... Bb7 {[%clk 0:02:24.7]} 13. Qe2 {[%clk 0:02:08.1]} 13... Rac8 {[%clk
0:02:09.4]} 0-1

[Event "*** Titled Tuesday 3|2 Blitz"]
[Site "Chess.com"]
[Date "2015.06.02"]
[Round "3"]
[White "patzerplay"]
[Black "SGQ"]
[Result "1-0"]
[WhiteElo "2184"]
[BlackElo "1996"]
[TimeControl "180+2"]
[EndTime "11:29:17 PDT"]
[Termination "patzerplay won by resignation"]

1. e4 {[%clk 0:03:01.9]} 1... e6 {[%clk 0:03:00.4]} 2. d4 {[%clk 0:03:02.3]}
2... d5 {[%clk 0:02:58.8]} 3. Nc3 {[%clk 0:03:03.4]} 3... Nc6 {[%clk 0:02:51.3]}
4. Nge2 {[%clk 0:02:44.4]} 4... dxe4 {[%clk 0:02:45.1]} 5. Nxe4 {[%clk
0:02:32.2]} 5... Nf6 {[%clk 0:02:45.7]} 6. Bg5 {[%clk 0:02:23.6]} 6... Be7
{[%clk 0:02:46.7]} 7. Bxf6 {[%clk 0:02:17]} 7... gxf6 {[%clk 0:02:46.2]} 8. c3
{[%clk 0:02:17.4]} 8... f5 {[%clk 0:02:46.6]} 9. N4g3 {[%clk 0:02:17.8]} 9... h5
{[%clk 0:02:42.9]} 10. Nf4 {[%clk 0:02:15.8]} 10... h4 {[%clk 0:02:43.4]} 11.
Ngh5 {[%clk 0:02:13.5]} 11... Rg8 {[%clk 0:02:31]} 12. Bb5 {[%clk 0:02:09.6]}
12... Bd7 {[%clk 0:02:31.1]} 13. Qe2 {[%clk 0:02:09.4]} 13... a6 {[%clk
0:02:30]} 14. Bc4 {[%clk 0:02:09.1]} 14... Bg5 {[%clk 0:02:23.2]} 15. d5 {[%clk
0:02:08.8]} 15... Na5 {[%clk 0:01:52.9]} 16. dxe6 {[%clk 0:02:08.2]} 16... fxe6
{[%clk 0:01:46.3]} 17. Nxe6 {[%clk 0:02:01.7]} 17... Bxe6 {[%clk 0:01:28]} 18.
Bxe6 {[%clk 0:02:01.8]} 18... Qe7 {[%clk 0:01:25.8]} 19. Bxg8 {[%clk 0:01:59.7]}
1-0

[Event "*** Titled Tuesday 3|2 Blitz"]
[Site "Chess.com"]
[Date "2015.06.02"]
[Round "3"]
[White "jcibarra"]
[Black "DanielNaroditsky"]
[Result "1/2-1/2"]
[WhiteElo "2542"]
[BlackElo "2534"]
[TimeControl "180+2"]
[EndTime "11:29:51 PDT"]
[Termination "Game drawn by agreement"]

1. e4 {[%clk 0:03:01.9]} 1... e5 {[%clk 0:02:58.2]} 2. Nf3 {[%clk 0:02:59.8]}
2... Nc6 {[%clk 0:02:59.5]} 3. Bb5 {[%clk 0:03:00.4]} 3... a6 {[%clk 0:03:00.1]}
4. Bxc6 {[%clk 0:03:01.4]} 4... dxc6 {[%clk 0:03:00.9]} 5. O-O {[%clk
0:03:03.3]} 5... f6 {[%clk 0:03:01.3]} 6. d4 {[%clk 0:03:03.8]} 6... Bg4 {[%clk
0:03:02.8]} 7. c3 {[%clk 0:03:04.7]} 7... Qe7 {[%clk 0:02:58.6]} 8. h3 {[%clk
0:02:56.9]} 8... Bh5 {[%clk 0:02:58.5]} 9. Nbd2 {[%clk 0:02:51.8]} 9... Nh6
{[%clk 0:02:55]} 10. b4 {[%clk 0:02:48.2]} 10... O-O-O {[%clk 0:02:53.3]} 11.
Qb3 {[%clk 0:02:38.7]} 11... Bxf3 {[%clk 0:02:38.5]} 12. Nxf3 {[%clk 0:02:37.1]}
12... exd4 {[%clk 0:02:39.5]} 13. Bxh6 {[%clk 0:02:36.2]} 13... gxh6 {[%clk
0:02:39.8]} 14. Nxd4 {[%clk 0:02:37.2]} 14... Qxe4 {[%clk 0:02:38.4]} 15. Ne6
{[%clk 0:02:12.6]} 15... Rg8 {[%clk 0:02:28.7]} 16. g3 {[%clk 0:01:51.6]} 16...
Rd2 {[%clk 0:02:22.9]} 17. Nf4 {[%clk 0:01:52.6]} 17... Rxg3+ {[%clk 0:01:07]}
18. fxg3 {[%clk 0:01:51.8]} 18... Qe3+ {[%clk 0:01:08.2]} 19. Kh1 {[%clk
0:01:52.9]} 19... Qe4+ {[%clk 0:01:09.4]} 20. Kg1 {[%clk 0:01:54]} 20... Bc5+
{[%clk 0:01:10.4]} 21. bxc5 {[%clk 0:01:53.5]} 21... Qe3+ {[%clk 0:01:11.5]} 22.
Kh1 {[%clk 0:01:54.7]} 22... Qe4+ {[%clk 0:01:11.3]} 1/2-1/2

[Event "*** Titled Tuesday 3|2 Blitz"]
[Site "Chess.com"]
[Date "2015.06.02"]
[Round "3"]
[White "AlexanderL"]
[Black "lorcho"]
[Result "0-1"]
[WhiteElo "2518"]
[BlackElo "2408"]
[TimeControl "180+2"]
[EndTime "11:31:05 PDT"]
[Termination "lorcho won by resignation"]

1. d4 {[%clk 0:03:01.9]} 1... e6 {[%clk 0:03:00.3]} 2. Bf4 {[%clk 0:02:59.4]}
2... Nf6 {[%clk 0:03:00.2]} 3. e3 {[%clk 0:03:00.2]} 3... c5 {[%clk 0:03:00.6]}
4. c3 {[%clk 0:03:01.3]} 4... Nc6 {[%clk 0:03:01.6]} 5. Nd2 {[%clk 0:03:02.1]}
5... d5 {[%clk 0:03:02.6]} 6. Ngf3 {[%clk 0:03:02.3]} 6... Bd6 {[%clk
0:03:03.2]} 7. Bg3 {[%clk 0:03:03.2]} 7... O-O {[%clk 0:03:01.6]} 8. Bd3 {[%clk
0:03:03.8]} 8... b6 {[%clk 0:02:59]} 9. Ne5 {[%clk 0:02:59.8]} 9... Bxe5 {[%clk
0:02:54.7]} 10. dxe5 {[%clk 0:03:00.9]} 10... Nd7 {[%clk 0:02:55.9]} 11. f4
{[%clk 0:03:02]} 11... f5 {[%clk 0:02:56.2]} 12. exf6 {[%clk 0:03:00.6]} 12...
Nxf6 {[%clk 0:02:57.2]} 13. O-O {[%clk 0:03:01.7]} 13... Bb7 {[%clk 0:02:55.8]}
14. Nf3 {[%clk 0:03:02.8]} 14... Qe8 {[%clk 0:02:53.8]} 15. Qe2 {[%clk
0:03:03.9]} 15... Qh5 {[%clk 0:02:51.7]} 16. Rae1 {[%clk 0:03:03.7]} 16... Rae8
{[%clk 0:02:52]} 17. h3 {[%clk 0:02:54.7]} 17... Re7 {[%clk 0:02:43.5]} 18. Bh4
{[%clk 0:02:55.2]} 18... e5 {[%clk 0:02:41.1]} 19. g4 {[%clk 0:02:49.5]} 19...
Qe8 {[%clk 0:02:41.5]} 20. fxe5 {[%clk 0:02:40.7]} 20... Nxe5 {[%clk 0:02:42.1]}
21. Nxe5 {[%clk 0:02:41.3]} 21... Rxe5 {[%clk 0:02:43.6]} 22. Bg3 {[%clk
0:02:36.5]} 22... Re6 {[%clk 0:02:41.7]} 23. Bf5 {[%clk 0:02:37.2]} 23... Rc6
{[%clk 0:02:39.4]} 24. Qh2 {[%clk 0:02:33.1]} 24... Bc8 {[%clk 0:02:29.5]} 25.
Bd3 {[%clk 0:02:30.1]} 25... Re6 {[%clk 0:02:28.8]} 26. Bf4 {[%clk 0:02:09.7]}
26... Ne4 {[%clk 0:02:27.9]} 27. c4 {[%clk 0:02:05.4]} 27... Bb7 {[%clk
0:02:25.9]} 28. Rd1 {[%clk 0:01:44.3]} 28... d4 {[%clk 0:02:17.3]} 29. exd4
{[%clk 0:01:44.5]} 29... cxd4 {[%clk 0:02:19.2]} 30. Bc2 {[%clk 0:01:43.2]}
30... Nc5 {[%clk 0:02:03.5]} 31. Bd6 {[%clk 0:01:28.7]} 31... Rxd6 {[%clk
0:01:56.1]} 32. Qxd6 {[%clk 0:00:47.4]} 32... Qe3+ {[%clk 0:01:55.4]} 33. Kh2
{[%clk 0:00:48.5]} 33... Rf2+ {[%clk 0:01:55.9]} 0-1

[Event "*** Titled Tuesday 3|2 Blitz"]
[Site "Chess.com"]
[Date "2015.06.02"]
[Round "3"]
[White "ChadaevNikolay"]
[Black "pKiLz5Rn9b"]
[Result "1-0"]
[WhiteElo "2653"]
[BlackElo "2323"]
[TimeControl "180+2"]
[EndTime "11:31:57 PDT"]
[Termination "ChadaevNikolay won on time"]

1. Nf3 {[%clk 0:03:01.9]} 1... Nf6 {[%clk 0:02:57.3]} 2. g3 {[%clk 0:03:01.7]}
2... e6 {[%clk 0:02:56.3]} 3. Bg2 {[%clk 0:03:02.6]} 3... d5 {[%clk 0:02:58]} 4.
O-O {[%clk 0:03:03.9]} 4... Be7 {[%clk 0:02:59.7]} 5. d3 {[%clk 0:03:05.4]} 5...
O-O {[%clk 0:03:01.3]} 6. Nbd2 {[%clk 0:03:07.1]} 6... b5 {[%clk 0:02:58.2]} 7.
e4 {[%clk 0:03:07.3]} 7... c5 {[%clk 0:02:57.3]} 8. Re1 {[%clk 0:03:08.3]} 8...
Nc6 {[%clk 0:02:58.1]} 9. h4 {[%clk 0:03:07.6]} 9... a5 {[%clk 0:02:57.2]} 10.
e5 {[%clk 0:03:05.4]} 10... Nd7 {[%clk 0:02:57.9]} 11. Nf1 {[%clk 0:03:06.9]}
11... Re8 {[%clk 0:02:56.7]} 12. N1h2 {[%clk 0:03:07.2]} 12... b4 {[%clk
0:02:53.7]} 13. Ng4 {[%clk 0:03:07.5]} 13... Bf8 {[%clk 0:02:51.9]} 14. Bf4
{[%clk 0:03:06]} 14... Ba6 {[%clk 0:02:48.9]} 15. h5 {[%clk 0:03:03.2]} 15... h6
{[%clk 0:02:49.4]} 16. Qc1 {[%clk 0:03:00.6]} 16... Qe7 {[%clk 0:02:33.4]} 17.
Qd2 {[%clk 0:02:52.9]} 17... Rac8 {[%clk 0:02:30.9]} 18. Rad1 {[%clk 0:02:52.5]}
18... Red8 {[%clk 0:02:26.1]} 19. Bh3 {[%clk 0:02:42.8]} 19... c4 {[%clk
0:02:24.5]} 20. d4 {[%clk 0:02:43.5]} 20... c3 {[%clk 0:02:23.4]} 21. bxc3
{[%clk 0:02:41.6]} 21... bxc3 {[%clk 0:02:24.5]} 22. Qc1 {[%clk 0:02:40.7]}
22... Qa3 {[%clk 0:02:22.4]} 23. Qe3 {[%clk 0:02:35.5]} 23... Qe7 {[%clk
0:02:20]} 24. Nxh6+ {[%clk 0:02:22.4]} 24... gxh6 {[%clk 0:02:19.8]} 25. Bxh6
{[%clk 0:02:22.9]} 25... Bxh6 {[%clk 0:02:20.9]} 26. Qxh6 {[%clk 0:02:23.7]}
26... Qf8 {[%clk 0:02:22.2]} 27. Qf4 {[%clk 0:02:24]} 27... Nb4 {[%clk
0:02:02.2]} 28. Rc1 {[%clk 0:02:14.2]} 28... Nxa2 {[%clk 0:01:59.2]} 29. Ra1
{[%clk 0:02:15.1]} 29... Nb4 {[%clk 0:02:00.7]} 30. Rec1 {[%clk 0:02:06.8]}
30... Rc6 {[%clk 0:01:49]} 31. Rxa5 {[%clk 0:02:05.9]} 31... Qg7 {[%clk
0:01:21.4]} 32. h6 {[%clk 0:02:02.1]} 32... Qg6 {[%clk 0:01:22.4]} 33. Nh4
{[%clk 0:02:01.9]} 33... Qh5 {[%clk 0:00:33.5]} 34. Bg4 {[%clk 0:02:02.3]} 34...
Qxh4 {[%clk 0:00:25.3]} 35. gxh4 {[%clk 0:02:02.8]} 1-0

[Event "*** Titled Tuesday 3|2 Blitz"]
[Site "Chess.com"]
[Date "2015.06.02"]
[Round "3"]
[White "geeeeri"]
[Black "FearNoEvil12"]
[Result "1-0"]
[WhiteElo "2158"]
[BlackElo "1951"]
[TimeControl "180+2"]
[EndTime "11:32:13 PDT"]
[Termination "geeeeri won by resignation"]

1. e4 {[%clk 0:03:01.9]} 1... c5 {[%clk 0:02:40.3]} 2. Nf3 {[%clk 0:03:02.3]}
2... d6 {[%clk 0:02:41.4]} 3. d4 {[%clk 0:03:03.7]} 3... cxd4 {[%clk 0:02:42.3]}
4. Qxd4 {[%clk 0:03:05.2]} 4... Nf6 {[%clk 0:02:42.8]} 5. c4 {[%clk 0:03:03.5]}
5... Nc6 {[%clk 0:02:42]} 6. Qe3 {[%clk 0:03:04.2]} 6... g6 {[%clk 0:02:42.6]}
7. Nc3 {[%clk 0:03:04.4]} 7... Bg7 {[%clk 0:02:43.8]} 8. Bd3 {[%clk 0:03:02.4]}
8... O-O {[%clk 0:02:44.6]} 9. O-O {[%clk 0:03:03]} 9... Bg4 {[%clk 0:02:43.7]}
10. Ne1 {[%clk 0:02:48.7]} 10... Ne5 {[%clk 0:02:40.8]} 11. f4 {[%clk
0:02:34.6]} 11... Nxd3 {[%clk 0:02:40.1]} 12. Qxd3 {[%clk 0:02:35.7]} 12... Rc8
{[%clk 0:02:37.5]} 13. Nc2 {[%clk 0:02:27.8]} 13... Be6 {[%clk 0:02:36]} 14. Ne3
{[%clk 0:02:24.9]} 14... Qb6 {[%clk 0:02:29.5]} 15. Kh1 {[%clk 0:02:20.4]} 15...
a6 {[%clk 0:02:27.3]} 16. Rb1 {[%clk 0:02:13.3]} 16... Rfd8 {[%clk 0:02:26.4]}
17. b3 {[%clk 0:02:13.7]} 17... Qa5 {[%clk 0:02:13]} 18. Bb2 {[%clk 0:02:11.6]}
18... b5 {[%clk 0:02:00.3]} 19. f5 {[%clk 0:02:10.3]} 19... bxc4 {[%clk
0:01:57.3]} 20. bxc4 {[%clk 0:02:00.9]} 20... Bd7 {[%clk 0:01:55]} 21. Ncd5
{[%clk 0:02:00.8]} 21... Nxd5 {[%clk 0:01:53.8]} 22. Nxd5 {[%clk 0:02:00.8]}
22... Re8 {[%clk 0:01:46.4]} 23. f6 {[%clk 0:01:55.4]} 23... exf6 {[%clk
0:01:33.9]} 24. Nxf6+ {[%clk 0:01:55.2]} 24... Bxf6 {[%clk 0:01:32.9]} 25. Bxf6
{[%clk 0:01:56.6]} 25... Qxa2 {[%clk 0:01:21.8]} 26. Ba1 {[%clk 0:01:40.3]}
26... Qxc4 {[%clk 0:01:13.2]} 27. Qxd6 {[%clk 0:01:40.7]} 27... Be6 {[%clk
0:00:54.2]} 28. Qe5 {[%clk 0:01:39.7]} 28... Kf8 {[%clk 0:00:54.7]} 29. Qg7+
{[%clk 0:01:28.4]} 29... Ke7 {[%clk 0:00:54.8]} 30. Qf6+ {[%clk 0:01:25.4]}
30... Kf8 {[%clk 0:00:54.1]} 31. Rfd1 {[%clk 0:01:18.2]} 1-0